bitfinex-derivatives/quotes_SOLF0:USTF0_20241127
["timestamp","ask_amount","ask_price","bid_price","bid_amount"]
[1732708095830,10.42006677,234.44,234.34,2.2]
[1732708096035,10.41653684,234.43,234.34,2.2]
[1732708096436,10.41653684,234.42,234.34,2.2]
[1732708096634,10.41653684,234.47,234.34,2.2]
[1732708096833,8.12333685,234.46,234.34,2.2]
[1732708097138,10.41653684,234.45,234.34,2.2]
[1732708097632,10.41653684,234.44,234.34,2.2]
[1732708097928,10.41653684,234.43,234.34,2.2]
[1732708098134,36.3714282,234.51,234.36,10.49319372]
[1732708098437,18.52771359,234.5,234.36,10.49319372]
[1732708098632,36.3714282,234.51,234.36,10.49319372]
[1732708098633,10.40813238,234.49,234.36,10.49319372]
[1732708098828,36.3714282,234.51,234.36,10.49319372]
[1732708098829,10.40813238,234.48,234.36,10.49319372]
[1732708099032,10.40813238,234.47,234.36,10.49319372]
[1732708099333,10.40813238,234.47,234.39,10.49319372]
[1732708099632,10.49319372,234.54,234.34,14.97]
[1732708099633,10.49319372,234.54,234.42,10.49319372]
[1732708099860,10.3961918,234.53,234.43,2.2]
[1732708100038,8.11028865,234.52,234.43,2.2]
[1732708100537,10.3961918,234.51,234.43,2.2]
[1732708100933,10.3961918,234.5,234.43,2.2]
[1732708101236,10.3961918,234.49,234.43,2.2]
[1732708101431,10.3961918,234.48,234.45,10.49319372]
[1732708101642,10.49319372,234.6,234.45,10.49319372]
[1732708101831,18.48552167,234.59,234.45,10.49319372]
[1732708102136,18.48552167,234.58,234.45,10.49319372]
[1732708102340,18.48552167,234.57,234.45,10.49319372]
[1732708102537,18.48552167,234.56,234.45,10.49319372]
[1732708102729,10.38440763,234.55,234.45,10.49319372]
[1732708102934,10.38440763,234.59,234.45,10.49319372]
[1732708103129,18.48040127,234.58,234.45,10.49319372]
[1732708103329,18.48040127,234.57,234.45,10.49319372]
[1732708103531,10.38440763,234.56,234.45,10.49319372]
[1732708103736,10.38440763,234.59,234.45,10.49319372]
[1732708103937,8.09133237,234.58,234.45,10.49319372]
[1732708104237,10.38440763,234.57,234.46,2.2]
[1732708104436,20.87760135,234.57,234.46,2.2]
[1732708104636,10.38440763,234.56,234.46,2.2]
[1732708104832,10.38440763,234.55,234.46,2.2]
[1732708105034,10.38440763,234.54,234.46,2.2]
[1732708105330,10.49319372,234.6,234.46,2.2]
[1732708105331,10.38440763,234.53,234.46,2.2]
[1732708105636,10.38440763,234.52,234.46,2.2]
[1732708105834,10.38440763,234.59,234.46,2.2]
[1732708106035,8.08393832,234.58,234.46,2.2]
[1732708106235,10.38440763,234.57,234.46,2.2]
[1732708106631,10.38440763,234.56,234.46,2.2]
[1732708106833,10.38440763,234.59,234.46,2.2]
[1732708110945,10.38440763,234.59,234.45,10.49319372]
[1732708111241,10.38440763,234.59,234.46,2.2]
[1732708111542,10.49319372,234.57,234.42,10.49319372]
[1732708111739,10.49319372,234.51,234.43,2.2]
[1732708111939,10.49319372,234.48,234.33,10.49319372]
[1732708112139,10.49319372,234.48,234.34,2.2]
[1732708112338,6.71448328,234.41,234.34,8.91448328]
[1732708112740,6.71448328,234.43,234.34,8.91448328]
[1732708113039,6.71448328,234.52,234.42,6.71448328]
[1732708113241,10.30637602,234.51,234.44,6.71448328]
[1732708113538,10.30637602,234.51,234.45,2.2]
[1732708113937,10.30637602,234.5,234.45,2.2]
[1732708114139,10.30637602,234.51,234.45,2.2]
[1732708114340,6.71448328,234.5,234.45,2.2]
[1732708114744,10.30637602,234.49,234.45,2.2]
[1732708115637,2.2,234.59,234.45,2.2]
[1732708115638,6.71448328,234.52,234.45,2.2]
[1732708115842,10.30658857,234.51,234.45,2.2]
[1732708116547,6.71448328,234.52,234.45,2.2]
[1732708117348,6.71448328,234.5,234.33,12.77]
[1732708117544,6.71448328,234.5,234.42,6.71448328]
[1732708117750,6.71448328,234.5,234.43,2.2]
[1732708119245,6.71448328,234.48,234.43,2.2]
[1732708119850,6.71448328,234.48,234.38,6.71448328]
[1732708120051,6.71448328,234.48,234.42,2.2]
[1732708121152,10.3074644,234.47,234.42,2.2]
[1732708121753,10.3074644,234.47,234.38,6.71448328]
[1732708121953,10.3074644,234.47,234.42,2.2]
[1732708122154,6.71448328,234.48,234.43,2.2]
[1732708122657,6.71448328,234.46,234.41,2.2]
[1732708126866,2.2,234.54,234.41,2.2]
[1732708127157,18.40684589,234.53,234.43,6.71448328]
[1732708127362,10.32115811,234.53,234.47,6.71448328]
[1732708127563,10.32284704,234.52,234.48,2.2]
[1732708127758,6.71448328,234.56,234.49,6.71448328]
[1732708127965,6.71448328,234.5,234.33,0.28216]
[1732708128264,6.71448328,234.46,234.38,6.71448328]
[1732708129062,10.32942881,234.45,234.38,6.71448328]
[1732708129460,10.32942881,234.45,234.34,2.2]
[1732708129664,10.32942881,234.45,234.38,6.71448328]
[1732708130359,10.32942881,234.45,234.34,12.68734948]
[1732708130553,10.32942881,234.48,234.34,12.68734948]
[1732708130759,10.32942881,234.48,234.4,10.48734948]
[1732708130957,10.32942881,234.48,234.41,2.2]
[1732708131166,10.48734948,234.56,234.43,10.48734948]
[1732708131357,18.43766529,234.55,234.43,10.48734948]
[1732708131554,8.09917989,234.55,234.43,10.48734948]
[1732708131763,8.09917989,234.55,234.46,10.48734948]
[1732708131955,8.09917989,234.55,234.47,2.2]
[1732708132163,10.34305638,234.54,234.4,10.48734948]
[1732708132365,10.34305638,234.54,234.41,2.2]
[1732708132867,10.48734948,234.53,234.41,2.2]
[1732708133161,10.48734948,234.5,234.41,2.2]
[1732708133465,10.34305638,234.49,234.41,2.2]
[1732708139373,8.12923592,234.48,234.41,2.2]
[1732708139676,10.34305638,234.47,234.41,2.2]
[1732708140169,10.34305638,234.46,234.41,2.2]
[1732708140371,10.34305638,234.45,234.41,2.2]
[1732708141073,10.34305638,234.44,234.41,2.2]
[1732708141473,10.34305638,234.44,234.35,10.48734948]
[1732708141675,10.34305638,234.43,234.36,2.2]
[1732708141869,10.34305638,234.42,234.36,2.2]
[1732708142067,10.34305638,234.41,234.36,2.2]
[1732708142266,10.48734948,234.5,234.36,2.2]
[1732708142471,8.13803678,234.49,234.36,2.2]
[1732708142677,18.52608914,234.49,234.36,2.2]
[1732708142874,18.52608914,234.48,234.36,2.2]
[1732708143076,18.52608914,234.47,234.36,2.2]
[1732708143267,18.52608914,234.46,234.36,2.2]
[1732708143472,18.52608914,234.46,234.33,0.28216]
[1732708143473,10.38805236,234.45,234.33,0.28216]
[1732708143673,29.0142444,234.44,234.33,0.28216]
[1732708143878,18.52689492,234.43,234.33,2.48216]
[1732708144076,8.13884256,234.42,234.33,2.48216]
[1732708144682,18.52689492,234.42,234.33,2.48216]
[1732708144976,18.52689492,234.41,234.33,2.2]
[1732708145172,10.38805236,234.4,234.26,10.48734948]
[1732708145374,10.38805236,234.4,234.27,2.2]
[1732708145578,8.13327295,234.39,234.27,2.2]
[1732708145770,10.38805236,234.38,234.26,10.48734948]
[1732708145969,10.38805236,234.37,234.23,10.48734948]
[1732708146378,10.38805236,234.37,234.24,2.2]
[1732708148573,10.38805236,234.37,234.26,10.48734948]
[1732708148976,10.48734948,234.41,234.26,10.48734948]
[1732708148977,10.38805236,234.36,234.26,10.48734948]
[1732708149280,10.48734948,234.41,234.26,10.48734948]
[1732708149475,10.36075072,234.4,234.26,10.48734948]
[1732708149675,10.36075072,234.41,234.29,10.48734948]
[1732708149878,10.48734948,234.45,234.3,2.2]
[1732708149879,10.36075072,234.4,234.3,2.2]
[1732708150077,10.36075072,234.4,234.32,10.48734948]
[1732708150281,10.48734948,234.48,234.32,10.48734948]
[1732708150575,18.47391349,234.47,234.32,10.48734948]
[1732708150784,10.35880717,234.46,234.32,10.48734948]
[1732708150973,10.48734948,234.48,234.35,10.48734948]
[1732708150974,10.35880717,234.47,234.35,10.48734948]
[1732708151283,10.35880717,234.47,234.41,10.48734948]
[1732708151479,10.35880717,234.47,234.42,2.2]
[1732708151775,10.48734948,234.54,234.42,2.2]
[1732708151776,10.35880717,234.45,234.42,2.2]
[1732708152182,10.48734948,234.54,234.42,2.2]
[1732708152384,18.47425387,234.53,234.42,2.2]
[1732708152681,10.35897212,234.52,234.42,2.2]
[1732708152882,10.35897212,234.51,234.42,2.2]
[1732708153078,10.35897212,234.5,234.29,1.06677653]
[1732708153283,10.35897212,234.5,234.35,10.48734948]
[1732708153484,10.35897212,234.5,234.36,2.2]
[1732708153978,10.35897212,234.5,234.38,10.48734948]
[1732708155081,10.35897212,234.5,234.41,10.48734948]
[1732708155277,10.35897212,234.49,234.42,2.2]
[1732708155479,10.35897212,234.48,234.42,2.2]
[1732708155882,10.35897212,234.47,234.43,2.2]
[1732708156087,10.35897212,234.47,234.38,10.48734948]
[1732708156088,10.35897212,234.46,234.44,2.2]
[1732708156282,10.48734948,234.54,234.45,2.2]
[1732708156485,18.48291242,234.53,234.46,2.2]
[1732708156787,10.48734948,234.54,234.46,2.2]
[1732708156788,18.48291242,234.52,234.46,2.2]
[1732708156978,18.48291242,234.51,234.46,2.2]
[1732708157178,10.48734948,234.54,234.46,2.2]
[1732708157179,10.36383495,234.5,234.46,2.2]
[1732708157378,10.36383495,234.49,234.46,2.2]
[1732708157583,10.36383495,234.48,234.46,2.2]
[1732708157886,10.36383495,234.47,234.46,2.2]
[1732708158087,10.36383495,234.53,234.46,2.2]
[1732708158282,8.11888043,234.52,234.46,2.2]
[1732708158486,10.36383495,234.51,234.46,2.2]
[1732708158883,10.36383495,234.5,234.46,2.2]
[1732708159184,10.36383495,234.49,234.46,2.2]
[1732708159380,10.36383495,234.48,234.46,2.2]
[1732708159580,10.36383495,234.47,234.46,2.2]
[1732708159889,10.36383495,234.5,234.46,2.2]
[1732708160084,10.48734948,234.51,234.46,2.2]
[1732708160085,10.36383495,234.47,234.46,2.2]
[1732708160281,10.36383495,234.5,234.46,2.2]
[1732708161085,10.36383495,234.53,234.46,2.2]
[1732708161286,8.11881843,234.52,234.46,2.2]
[1732708161486,10.36383495,234.51,234.46,2.2]
[1732708161686,8.11881843,234.5,234.46,2.2]
[1732708161884,10.36383495,234.49,234.46,2.2]
[1732708162191,10.36383495,234.48,234.46,2.2]
[1732708162382,10.36383495,234.53,234.46,2.2]
[1732708162584,18.48280027,234.52,234.46,2.2]
[1732708162784,18.48280027,234.51,234.46,2.2]
[1732708162984,18.48280027,234.5,234.46,2.2]
[1732708163184,10.48734948,234.54,234.46,2.2]
[1732708163185,10.36383495,234.49,234.46,2.2]
[1732708163392,10.36383495,234.53,234.46,2.2]
[1732708163689,8.11925062,234.52,234.46,2.2]
[1732708163893,10.36383495,234.51,234.46,2.2]
[1732708164387,3.11409144,238.77,234.46,2.2]
[1732708164388,10.36383495,234.53,234.46,2.2]
[1732708164691,10.36383495,234.52,234.46,2.2]
[1732708164892,10.36383495,234.57,234.46,2.2]
[1732708165191,10.36383495,234.51,234.46,2.2]
[1732708165688,10.36383495,234.56,234.47,10.48734948]
[1732708165892,10.48734948,234.64,234.47,12.67320944]
[1732708166192,10.48734948,234.61,234.47,10.48734948]
[1732708166390,8.11519472,234.6,234.47,10.48734948]
[1732708166591,10.36383495,234.55,234.47,10.48734948]
[1732708166787,10.48734948,234.61,234.47,10.48734948]
[1732708166982,18.27174921,234.6,234.47,10.48734948]
[1732708167183,10.15976211,234.6,234.47,10.48734948]
[1732708167384,8.11013167,234.59,234.47,10.48734948]
[1732708167589,18.26989378,234.59,234.47,10.48734948]
[1732708167793,18.26989378,234.58,234.47,10.48734948]
[1732708167988,10.15976211,234.57,234.47,10.48734948]
[1732708168193,10.15976211,234.56,234.47,10.48734948]
[1732708168394,10.15976211,234.6,234.47,10.48734948]
[1732708168593,10.15976211,234.55,234.47,10.48734948]
[1732708168794,10.15976211,234.54,234.47,10.48734948]
[1732708168992,10.48734948,234.61,234.47,10.48734948]
[1732708169195,18.2605929,234.6,234.47,10.48734948]
[1732708169397,18.2605929,234.59,234.47,10.48734948]
[1732708169594,10.15355956,234.59,234.47,10.48734948]
[1732708169894,10.15355956,234.58,234.47,10.48734948]
[1732708170093,10.15355956,234.57,234.48,2.2]
[1732708170289,10.15355956,234.6,234.48,2.2]
[1732708170494,10.15355956,234.59,234.48,2.2]
[1732708170696,10.15355956,234.6,234.48,2.2]
[1732708170990,10.15355956,234.59,234.48,2.2]
[1732708171196,10.15355956,234.58,234.5,10.48734948]
[1732708171395,10.15355956,234.57,234.48,2.2]
[1732708171598,10.15355956,234.56,234.48,2.2]
[1732708171790,10.48734948,234.61,234.48,2.2]
[1732708171990,18.2446481,234.6,234.48,2.2]
[1732708172191,10.14469246,234.59,234.48,2.2]
[1732708172387,10.14469246,234.58,234.48,2.2]
[1732708172594,10.14469246,234.57,234.48,2.2]
[1732708172786,10.14469246,234.56,234.48,2.2]
[1732708172986,10.48734948,234.61,234.48,2.2]
[1732708173194,18.24050065,234.6,234.48,2.2]
[1732708173389,10.14238475,234.6,234.48,2.2]
[1732708173594,10.14238475,234.59,234.48,2.2]
[1732708174097,10.48734948,234.63,234.48,2.2]
[1732708174098,10.14238475,234.58,234.48,2.2]
[1732708174394,10.48734948,234.63,234.48,2.2]
[1732708174395,10.48734948,234.63,234.5,10.48734948]
[1732708174592,10.13642693,234.62,234.5,10.48734948]
[1732708178499,291.14951155,234.92,234.53,10.48734948]
[1732708178500,10.48734948,234.67,234.53,10.48734948]
[1732708178704,10.12435679,234.66,234.54,2.2]
[1732708179794,10.12435679,234.65,234.54,2.2]
[1732708179998,10.12435679,234.69,234.56,10.48734948]
[1732708180297,10.12002268,234.68,234.56,10.48734948]
[1732708180605,10.11572764,234.67,234.56,10.48734948]
[1732708180797,10.48734948,234.7,234.56,10.48734948]
[1732708181105,10.11567107,234.69,234.56,10.48734948]
[1732708182292,10.11567107,234.69,234.54,2.2]
[1732708182293,6.7003865,234.66,234.58,6.7003865]
[1732708182494,2.2,234.75,234.6,6.7003865]
[1732708182695,6.7003865,234.68,234.61,2.2]
[1732708183296,6.7003865,234.68,234.6,6.7003865]
[1732708183500,6.7003865,234.68,234.61,2.2]
[1732708183703,6.7003865,234.66,234.61,2.2]
[1732708184701,2.2,234.75,234.61,2.2]
[1732708184897,6.7003865,234.65,234.61,2.2]
[1732708185707,6.7003865,234.66,234.61,2.2]
[1732708186515,14.97,234.75,234.61,2.2]
[1732708186711,6.7003865,234.66,234.61,2.2]
[1732708188105,2.2,234.75,234.61,2.2]
[1732708188311,10.09281062,234.74,234.62,6.7003865]
[1732708188510,6.7003865,234.71,234.62,6.7003865]
[1732708189210,24.30400334,234.76,234.64,6.7003865]
[1732708189400,24.30400334,234.76,234.66,6.7003865]
[1732708189401,6.7003865,234.75,234.66,6.7003865]
[1732708189602,24.30400334,234.76,234.67,2.2]
[1732708190011,31.00438984,234.76,234.68,6.7003865]
[1732708190209,10.09331129,234.75,234.7,6.7003865]
[1732708190404,10.45814122,234.82,234.67,2.2]
[1732708190604,10.45814122,234.76,234.68,2.2]
[1732708190913,10.45814122,234.73,234.57,10.45814122]
[1732708191111,10.45814122,234.73,234.58,2.2]
[1732708191915,10.09331129,234.72,234.58,2.2]
[1732708192705,10.45814122,234.7,234.58,2.2]
[1732708192910,10.09331129,234.69,234.58,2.2]
[1732708193408,10.09331129,234.69,234.58,12.65814122]
[1732708193608,10.09331129,234.68,234.58,12.65814122]
[1732708193808,10.45814122,234.73,234.58,12.65814122]
[1732708194010,10.10419428,234.72,234.58,12.65814122]
[1732708194611,10.10419428,234.72,234.61,10.45814122]
[1732708194809,10.45814122,234.76,234.61,10.45814122]
[1732708194810,10.10419428,234.75,234.61,10.45814122]
[1732708195013,10.45814122,234.76,234.61,10.45814122]
[1732708195014,10.10419428,234.71,234.61,10.45814122]
[1732708195215,10.10419428,234.7,234.61,10.45814122]
[1732708195518,10.45814122,234.79,234.64,10.45814122]
[1732708195810,18.18471184,234.78,234.65,2.2]
[1732708196013,18.18471184,234.77,234.65,2.2]
[1732708196213,10.11126201,234.76,234.65,2.2]
[1732708196409,10.11126201,234.75,234.65,2.2]
[1732708196609,10.11126201,234.74,234.65,2.2]
[1732708196812,10.11126201,234.73,234.65,2.2]
[1732708197011,10.11126201,234.72,234.65,2.2]
[1732708197217,10.45814122,234.79,234.65,2.2]
[1732708197417,10.11066387,234.78,234.65,2.2]
[1732708197614,10.11066387,234.78,234.67,10.45814122]
[1732708197916,10.45814122,234.82,234.67,10.45814122]
[1732708197917,10.11066387,234.77,234.67,10.45814122]
[1732708198319,10.11066387,234.76,234.67,10.45814122]
[1732708198519,10.45814122,234.82,234.67,10.45814122]
[1732708198716,10.1079732,234.81,234.67,10.45814122]
[1732708199214,10.1079732,234.81,234.7,10.45814122]
[1732708199422,10.1079732,234.8,234.71,2.2]
[1732708199714,10.45814122,234.85,234.71,2.2]
[1732708199915,10.10507561,234.84,234.76,10.45814122]
[1732708200109,10.45814122,234.93,234.77,2.2]
[1732708200313,10.45814122,234.87,234.66,12.81]
[1732708200517,10.09492578,234.86,234.7,10.45814122]
[1732708200908,10.45814122,234.87,234.73,10.45814122]
[1732708201113,10.09502919,234.86,234.74,2.2]
[1732708202415,10.45814122,234.93,234.79,10.45814122]
[1732708202721,10.08699241,234.92,234.8,2.2]
[1732708203115,10.45814122,234.9,234.8,2.2]
[1732708203421,10.45814122,234.93,234.8,2.2]
[1732708203623,10.08145417,234.92,234.8,2.2]
[1732708206222,10.45814122,234.9,234.81,2.2]
[1732708206418,10.08145417,234.89,234.81,2.2]
[1732708207424,10.45814122,234.93,234.81,2.2]
[1732708207624,10.07071332,234.92,234.81,2.2]
[1732708207820,10.07071332,234.92,234.79,10.45814122]
[1732708208021,10.07071332,234.92,234.82,2.2]
[1732708208221,10.07071332,234.92,234.82,12.65814122]
[1732708208526,10.45814122,234.96,234.82,12.65814122]
[1732708208727,10.06863281,234.95,234.82,12.65814122]
[1732708209224,10.06863281,234.95,234.88,10.45814122]
[1732708209522,10.45814122,235.03,234.91,10.45814122]
[1732708209717,10.06593809,235.02,234.92,2.2]
[1732708210123,10.06593809,235.01,234.92,2.2]
[1732708210324,23.23814122,235.09,234.94,10.45814122]
[1732708210527,30.8679896,235.08,234.94,10.45814122]
[1732708210728,10.05728651,235.07,234.94,10.45814122]
[1732708211124,20.51542773,235.06,234.92,2.2]
[1732708211323,10.05728651,235.05,234.92,2.2]
[1732708215329,10.45814122,235.06,234.92,2.2]
[1732708217126,10.45814122,235.09,234.94,10.45814122]
[1732708217330,10.02346307,235.08,234.94,10.45814122]
[1732708217532,10.45814122,235.09,234.94,10.45814122]
[1732708218031,10.45814122,235.12,234.97,10.45814122]
[1732708218232,10.0170637,235.11,234.98,2.2]
[1732708219433,10.45814122,235.09,234.98,2.2]
[1732708219630,10.01610038,235.08,234.98,2.2]
[1732708220326,10.45814122,235.06,234.98,2.2]
[1732708221035,10.015497,235.05,234.98,2.2]
[1732708221230,10.45814122,235.06,234.98,2.2]
[1732708221535,10.01537206,235.05,234.96,2.2]
[1732708222236,10.45814122,235.03,234.88,10.45814122]
[1732708222426,10.45814122,235.03,234.89,2.2]
[1732708222627,10.01760372,235.02,234.89,2.2]
[1732708222827,10.01760372,235.02,234.88,10.45814122]
[1732708223032,10.01760372,235.02,234.9,2.2]
[1732708223232,10.45814122,235.0,234.8,55.61]
[1732708223428,10.45814122,234.91,234.8,42.8]
[1732708223928,10.45814122,234.88,234.8,42.8]
[1732708224534,12.65814122,234.88,234.8,42.8]
[1732708225435,10.45814122,234.88,234.8,42.8]
[1732708226131,10.45814122,234.94,234.8,42.8]
[1732708226330,2.2,234.93,234.8,42.8]
[1732708226835,10.45814122,234.94,234.8,42.8]
[1732708227031,2.2,234.95,234.82,10.45814122]
[1732708227932,10.45814122,235.08,234.85,10.45814122]
[1732708227933,10.45814122,235.0,234.85,10.45814122]
[1732708228129,2.2,235.02,234.88,10.45814122]
[1732708228326,10.45814122,235.03,234.89,2.2]
[1732708230733,2.2,235.05,234.91,10.45814122]
[1732708231535,10.45814122,235.06,234.89,2.2]
[1732708231536,12.65814122,235.09,234.94,10.45814122]
[1732708231738,12.65814122,235.09,234.95,2.2]
[1732708232035,10.0469705,235.08,234.95,2.2]
[1732708232230,10.45814122,235.06,234.95,2.2]
[1732708233337,10.055636,235.05,234.95,2.2]
[1732708233537,10.45814122,235.06,234.95,2.2]
[1732708233736,10.45814122,235.09,234.95,2.2]
[1732708234043,10.0549852,235.08,234.95,2.2]
[1732708235436,10.0549852,235.08,234.97,10.45814122]
[1732708235640,2.2,235.1,234.97,10.45814122]
[1732708235840,10.05914361,235.09,234.97,10.45814122]
[1732708236036,10.05914361,235.09,234.95,2.2]
[1732708236037,10.05914361,235.09,235.0,10.45814122]
[1732708236243,10.05914361,235.09,235.01,2.18]
[1732708236437,23.88913569,235.13,235.01,2.18]
[1732708237736,10.45814122,235.15,235.01,2.18]
[1732708237937,10.06209912,235.14,235.01,2.18]
[1732708238337,10.45814122,235.12,235.01,2.18]
[1732708239843,10.45814122,235.15,235.01,2.18]
[1732708240241,10.04065575,235.14,235.01,2.18]
[1732708240436,10.04065575,235.14,235.03,10.45814122]
[1732708241042,10.97503122,235.18,235.03,10.45814122]
[1732708241241,10.05076757,235.17,235.03,10.45814122]
[1732708245547,10.05076757,235.17,235.06,10.45814122]
[1732708245753,10.45814122,235.21,235.07,2.18]
[1732708245754,10.05076757,235.16,235.07,2.18]
[1732708246053,10.45814122,235.24,235.09,10.45814122]
[1732708246340,10.06564158,235.23,235.09,10.45814122]
[1732708246946,10.06564158,235.23,235.12,10.45814122]
[1732708247246,10.06564158,235.23,235.13,2.18]
[1732708248049,10.06564158,235.22,235.13,2.18]
[1732708248245,10.06564158,235.21,235.13,2.18]
[1732708248447,10.06564158,235.2,235.13,2.18]
[1732708248647,10.06564158,235.19,235.13,2.18]
[1732708248853,10.45814122,235.18,235.12,2.18]
[1732708249051,10.45814122,235.18,235.1,2.18]
[1732708249448,10.06564158,235.17,235.1,2.18]
[1732708250448,10.06564158,235.2,235.1,2.18]
[1732708250654,10.06564158,235.16,235.1,2.18]
[1732708250954,10.45814122,235.24,235.1,2.18]
[1732708251148,10.06154088,235.23,235.1,2.18]
[1732708251344,10.06154088,235.23,235.12,10.45814122]
[1732708251549,15.64386,235.29,235.12,10.45814122]
[1732708251550,10.06154088,235.22,235.12,10.45814122]
[1732708251750,10.45814122,235.28,235.12,10.45814122]
[1732708252253,10.06035192,235.27,235.12,10.45814122]
[1732708255154,10.06035192,235.27,235.15,10.45814122]
[1732708255356,10.06035192,235.27,235.16,2.18]
[1732708257258,10.45814122,235.28,235.16,2.18]
[1732708257562,0.68386,235.29,235.16,2.18]
[1732708257754,10.72066736,235.29,235.16,2.18]
[1732708258153,0.68386,235.29,235.16,2.18]
[1732708258658,0.68386,235.29,235.18,10.45814122]
[1732708259761,10.45814122,235.28,235.16,2.18]
[1732708260259,10.45814122,235.25,235.17,2.18]
[1732708260450,10.45814122,235.25,235.02,33.18]
[1732708260451,10.45814122,235.25,235.16,2.18]
[1732708260653,10.45814122,235.25,235.1,10.45814122]
[1732708260853,10.45814122,235.22,235.11,2.18]
[1732708261049,10.45814122,235.22,235.07,10.45814122]
[1732708261050,10.45814122,235.22,235.12,2.18]
[1732708261258,10.45814122,235.22,235.13,2.18]
[1732708262061,10.45814122,235.25,235.13,2.18]
[1732708262554,10.45814122,235.25,235.13,12.63814122]
[1732708263059,13.32200122,235.29,235.13,12.63814122]
[1732708263360,10.02029018,235.28,235.13,12.63814122]
[1732708263957,0.68386,235.29,235.16,10.45814122]
[1732708265060,0.68386,235.29,235.19,10.45814122]
[1732708265254,0.68386,235.29,235.2,2.18]
[1732708269258,11.14200122,235.29,235.09,12.81]
[1732708269459,10.45814122,235.26,235.1,10.45814122]
[1732708269761,10.45814122,235.26,235.11,2.18]
[1732708270263,10.02055292,235.25,235.11,2.18]
[1732708270459,10.45814122,235.23,235.1,10.45814122]
[1732708270654,10.45814122,235.23,235.12,2.18]
[1732708271657,10.02433129,235.22,235.12,2.18]
[1732708274662,10.02433129,235.22,235.13,10.45814122]
[1732708274961,10.45814122,235.29,235.13,10.45814122]
[1732708275167,10.04709709,235.28,235.13,10.45814122]
[1732708276466,10.04709709,235.28,235.16,10.45814122]
[1732708276663,10.04709709,235.27,235.16,10.45814122]
[1732708276961,10.04709709,235.31,235.16,10.45814122]
[1732708277166,10.04709709,235.3,235.16,10.45814122]
[1732708277368,10.04709709,235.29,235.19,10.45814122]
[1732708277670,10.04709709,235.28,235.2,2.18]
[1732708277869,10.04709709,235.27,235.2,2.18]
[1732708278074,44.89354082,235.35,235.2,2.18]
[1732708278267,18.11522935,235.34,235.2,2.18]
[1732708278464,10.07223231,235.33,235.2,2.18]
[1732708278669,10.07223231,235.32,235.2,2.18]
[1732708278873,10.07223231,235.31,235.22,10.45814122]
[1732708279066,10.07223231,235.3,235.22,10.45814122]
[1732708279374,10.07223231,235.29,235.22,10.45814122]
[1732708279571,32.11354082,235.35,235.22,10.45814122]
[1732708279877,10.07933541,235.34,235.22,10.45814122]
[1732708280176,10.07933541,235.34,235.2,2.18]
[1732708280375,8.05577405,235.33,235.2,2.18]
[1732708280575,10.07933541,235.32,235.2,2.18]
[1732708281075,22.85933541,235.31,235.21,2.18]
[1732708281271,18.13762978,235.3,235.21,2.18]
[1732708281569,18.13762978,235.29,235.21,2.18]
[1732708281771,10.07933541,235.28,235.21,2.18]
[1732708282074,10.07933541,235.27,235.18,2.18]
[1732708282273,10.07933541,235.26,235.18,2.18]
[1732708282475,10.07933541,235.25,235.18,2.18]
[1732708282675,10.07933541,235.24,235.18,2.18]
[1732708282873,10.07933541,235.23,235.18,2.18]
[1732708283174,10.07933541,235.22,235.18,2.18]
[1732708283474,10.07933541,235.21,235.18,2.18]
[1732708283667,10.45814122,235.29,235.18,2.18]
[1732708283871,18.15349287,235.28,235.18,2.18]
[1732708284067,2.18,235.33,235.18,2.18]
[1732708284068,10.45814122,235.27,235.18,2.18]
[1732708284267,10.45814122,235.27,235.13,10.45814122]
[1732708284466,10.45814122,235.27,235.14,2.18]
[1732708284676,10.45814122,235.24,235.07,1.06340615]
[1732708284872,10.45814122,235.24,235.08,12.63814122]
[1732708284873,10.45814122,235.21,235.08,12.63814122]
[1732708285077,10.45814122,235.21,235.09,2.18]
[1732708285078,10.45814122,235.18,235.09,2.18]
[1732708285373,10.45814122,235.15,235.04,2.18]
[1732708286778,23.23814122,235.15,234.99,10.45814122]
[1732708286973,10.45814122,235.09,234.96,2.18]
[1732708287173,10.45814122,235.06,234.94,10.45814122]
[1732708287373,10.45814122,235.06,234.95,2.18]